[Event "Un Rapid per cominciare!"]
[Site "Chess.com"]
[Date "2020.04.10"]
[Round "5"]
[White "mr6701"]
[Black "caramante"]
[Result "0-1"]
[WhiteElo "1465"]
[BlackElo "1640"]
[TimeControl "720+3"]
[EndTime "13:28:26 PDT"]
[Termination "caramante ha vinto per scaccomatto"]

1. e4 {[%clk 0:12:02.9]} 1... c5 {[%clk 0:11:55.3]} 2. d4 {[%clk 0:12:04.5]}
2... cxd4 {[%clk 0:11:55.1]} 3. c3 {[%clk 0:12:07.1]} 3... d3 {[%clk 0:11:56.5]}
4. Bxd3 {[%clk 0:12:08.8]} 4... d6 {[%clk 0:11:44.9]} 5. Nf3 {[%clk 0:12:11.7]}
5... a6 {[%clk 0:11:43.5]} 6. Bg5 {[%clk 0:12:07]} 6... Nd7 {[%clk 0:11:42.9]}
7. O-O {[%clk 0:12:06.8]} 7... Ngf6 {[%clk 0:11:44.5]} 8. Na3 {[%clk 0:12:07.8]}
8... e6 {[%clk 0:11:43.9]} 9. Qe2 {[%clk 0:12:07.5]} 9... Be7 {[%clk 0:11:44.7]}
10. Nc4 {[%clk 0:12:08.7]} 10... b5 {[%clk 0:11:40.9]} 11. Ne3 {[%clk
0:12:06.1]} 11... Qc7 {[%clk 0:11:36.6]} 12. Bf4 {[%clk 0:12:05.6]} 12... O-O
{[%clk 0:11:34.6]} 13. c4 {[%clk 0:12:07.6]} 13... bxc4 {[%clk 0:11:21.5]} 14.
Nxc4 {[%clk 0:12:08.5]} 14... e5 {[%clk 0:11:17.2]} 15. Bg5 {[%clk 0:12:06.6]}
15... h6 {[%clk 0:11:18.1]} 16. Bh4 {[%clk 0:12:07.8]} 16... Bb7 {[%clk
0:11:12.8]} 17. Rfc1 {[%clk 0:12:08.6]} 17... Qd8 {[%clk 0:11:07.1]} 18. Rd1
{[%clk 0:12:07]} 18... Nc5 {[%clk 0:11:03.3]} 19. Re1 {[%clk 0:11:40.5]} 19...
Rc8 {[%clk 0:10:31.5]} 20. Rad1 {[%clk 0:11:40.9]} 20... Qc7 {[%clk 0:10:21.6]}
21. Rc1 {[%clk 0:11:36.6]} 21... Rfd8 {[%clk 0:09:53.1]} 22. Bb1 {[%clk
0:11:17.5]} 22... Qd7 {[%clk 0:09:52]} 23. Red1 {[%clk 0:11:16.9]} 23... Qe6
{[%clk 0:09:43.1]} 24. Nb6 {[%clk 0:11:14]} 24... Rc7 {[%clk 0:09:28.6]} 25. b4
{[%clk 0:11:13]} 25... Bxe4 {[%clk 0:08:22.5]} 26. bxc5 {[%clk 0:11:10.9]} 26...
Bxb1 {[%clk 0:08:22.7]} 27. Rxb1 {[%clk 0:11:09.4]} 27... Rxc5 {[%clk
0:08:16.5]} 28. Qxa6 {[%clk 0:10:35.2]} 28... d5 {[%clk 0:08:08]} 29. Qb7 {[%clk
0:10:30.5]} 29... d4 {[%clk 0:07:43.9]} 30. Na4 {[%clk 0:10:08]} 30... Ra5
{[%clk 0:07:36.3]} 31. Rb6 {[%clk 0:09:55.9]} 31... Rd6 {[%clk 0:07:12.3]} 32.
Rxd6 {[%clk 0:09:38.2]} 32... Qxd6 {[%clk 0:07:10.3]} 33. Nb2 {[%clk 0:09:35.1]}
33... Rxa2 {[%clk 0:07:03.8]} 34. Qb3 {[%clk 0:09:36]} 34... Ra3 {[%clk
0:06:57.4]} 35. Qc2 {[%clk 0:09:35.2]} 35... Rc3 {[%clk 0:06:49.9]} 36. Qxc3
{[%clk 0:09:31.4]} 36... dxc3 {[%clk 0:06:49.9]} 37. Rxd6 {[%clk 0:09:33.3]}
37... Bxd6 {[%clk 0:06:44.5]} 38. Nd3 {[%clk 0:09:27.1]} 38... e4 {[%clk
0:06:44]} 39. Bxf6 {[%clk 0:09:28.6]} 39... gxf6 {[%clk 0:06:41]} 40. Nde1
{[%clk 0:09:26.3]} 40... exf3 {[%clk 0:06:36.4]} 41. gxf3 {[%clk 0:09:26.9]}
41... Bf4 {[%clk 0:06:32.8]} 42. Kf1 {[%clk 0:09:27]} 42... Bxh2 {[%clk
0:06:34.3]} 43. Ke2 {[%clk 0:09:27.8]} 43... Bf4 {[%clk 0:06:35]} 44. Kd3 {[%clk
0:09:29.8]} 44... Bd2 {[%clk 0:06:34.9]} 45. Ng2 {[%clk 0:09:29.1]} 45... Kg7
{[%clk 0:06:32.9]} 46. Ne3 {[%clk 0:09:31.2]} 46... Kg6 {[%clk 0:06:29.8]} 47.
Ng4 {[%clk 0:09:19.8]} 47... h5 {[%clk 0:06:26.3]} 48. Nh2 {[%clk 0:09:20.1]}
48... Kg5 {[%clk 0:06:24.7]} 49. Nf1 {[%clk 0:09:18.6]} 49... Kf4 {[%clk
0:06:23.2]} 50. Ke2 {[%clk 0:09:20.6]} 50... h4 {[%clk 0:06:15.3]} 51. Nh2
{[%clk 0:09:22.5]} 51... h3 {[%clk 0:06:13.8]} 52. Nf1 {[%clk 0:09:22.2]} 52...
Ke5 {[%clk 0:06:09.5]} 53. Nh2 {[%clk 0:09:22.8]} 53... f5 {[%clk 0:06:10.9]}
54. Nf1 {[%clk 0:09:21.9]} 54... f4 {[%clk 0:06:10.2]} 55. Nh2 {[%clk
0:09:23.8]} 55... f5 {[%clk 0:06:12.1]} 56. Nf1 {[%clk 0:09:25.4]} 56... Kd4
{[%clk 0:06:13.4]} 57. Nh2 {[%clk 0:09:20.7]} 57... Kc4 {[%clk 0:06:14.7]} 58.
Nf1 {[%clk 0:09:17.5]} 58... Kb3 {[%clk 0:06:16.3]} 59. Kd1 {[%clk 0:09:14.4]}
59... Kb2 {[%clk 0:05:45.8]} 60. Ke2 {[%clk 0:08:53.7]} 60... c2 {[%clk
0:05:27.4]} 61. Kxd2 {[%clk 0:08:48.9]} 61... c1=Q+ {[%clk 0:05:28.3]} 62. Ke2
{[%clk 0:08:51.8]} 62... Qc2+ {[%clk 0:05:23.3]} 63. Ke1 {[%clk 0:08:53.4]}
63... Kc1 {[%clk 0:05:22.7]} 64. Nh2 {[%clk 0:08:49.6]} 64... Qd1# {[%clk
0:05:23.3]} 0-1

[Event "Un Rapid per cominciare!"]
[Site "Chess.com"]
[Date "2020.04.10"]
[Round "5"]
[White "sirmale49"]
[Black "Piccolorso"]
[Result "0-1"]
[WhiteElo "1413"]
[BlackElo "1535"]
[TimeControl "720+3"]
[EndTime "13:36:00 PDT"]
[Termination "Piccolorso ha vinto per abbandono"]

1. e4 {[%clk 0:12:00.1]} 1... c5 {[%clk 0:12:01.1]} 2. f4 {[%clk 0:12:00.4]}
2... d5 {[%clk 0:12:00.3]} 3. e5 {[%clk 0:12:00.6]} 3... e6 {[%clk 0:12:01.7]}
4. Nf3 {[%clk 0:12:00.8]} 4... g6 {[%clk 0:11:48.1]} 5. Bb5+ {[%clk 0:11:55.5]}
5... Bd7 {[%clk 0:11:47.7]} 6. Bxd7+ {[%clk 0:11:51.7]} 6... Nxd7 {[%clk
0:11:48.3]} 7. O-O {[%clk 0:11:52.9]} 7... Bg7 {[%clk 0:11:50.1]} 8. d4 {[%clk
0:11:52.9]} 8... Ne7 {[%clk 0:11:47]} 9. g4 {[%clk 0:11:52]} 9... O-O {[%clk
0:11:43]} 10. Nc3 {[%clk 0:11:47.1]} 10... f6 {[%clk 0:11:14.8]} 11. Nb5 {[%clk
0:11:33.2]} 11... fxe5 {[%clk 0:10:43.8]} 12. Nxe5 {[%clk 0:11:23.9]} 12... cxd4
{[%clk 0:10:19.9]} 13. Nxd4 {[%clk 0:10:37.6]} 13... Nxe5 {[%clk 0:09:02.9]} 14.
fxe5 {[%clk 0:10:35]} 14... Bxe5 {[%clk 0:08:07.6]} 15. Nxe6 {[%clk 0:09:06.5]}
15... Qb6+ {[%clk 0:08:08]} 16. Kh1 {[%clk 0:08:54.8]} 16... Qxe6 {[%clk
0:08:09.4]} 17. Bh6 {[%clk 0:08:45.8]} 17... Rxf1+ {[%clk 0:07:21.2]} 18. Qxf1
{[%clk 0:08:43.8]} 18... Bg7 {[%clk 0:07:22.7]} 19. Re1 {[%clk 0:08:27.9]} 19...
Qd7 {[%clk 0:04:55.9]} 20. Bg5 {[%clk 0:08:02.5]} 20... Rf8 {[%clk 0:04:25.9]}
21. Qe2 {[%clk 0:07:53.9]} 21... Nc6 {[%clk 0:04:04.7]} 22. Rd1 {[%clk
0:06:34.7]} 22... Qf7 {[%clk 0:04:00.5]} 23. Be3 {[%clk 0:06:11.9]} 23... Qf3+
{[%clk 0:03:59.4]} 24. Qxf3 {[%clk 0:05:59.3]} 24... Rxf3 {[%clk 0:04:00.2]} 25.
Bg1 {[%clk 0:05:53]} 25... d4 {[%clk 0:04:01.4]} 26. Kg2 {[%clk 0:05:51]} 26...
Rf7 {[%clk 0:04:02.1]} 27. Rd3 {[%clk 0:05:39.2]} 27... Nb4 {[%clk 0:03:27.1]}
28. Rb3 {[%clk 0:05:30]} 28... Nxc2 {[%clk 0:03:19.6]} 29. a4 {[%clk 0:05:09.3]}
29... Rd7 {[%clk 0:03:18.3]} 30. Rd3 {[%clk 0:05:08.2]} 30... Nb4 {[%clk
0:03:14.6]} 31. Rd2 {[%clk 0:05:04.6]} 31... d3 {[%clk 0:03:14.1]} 32. b3 {[%clk
0:04:56.3]} 32... a5 {[%clk 0:03:14.9]} 33. Bc5 {[%clk 0:04:44.3]} 33... Nc6
{[%clk 0:02:42.9]} 34. Kf3 {[%clk 0:04:35.1]} 34... Ne5+ {[%clk 0:02:38]} 35.
Ke4 {[%clk 0:04:31.7]} 35... Nxg4 {[%clk 0:02:37.9]} 36. h3 {[%clk 0:04:04.6]}
36... Nf6+ {[%clk 0:02:38.7]} 37. Ke5 {[%clk 0:03:59.5]} 37... Kf7 {[%clk
0:02:39.2]} 38. Kf4 {[%clk 0:03:30.7]} 38... Ne8 {[%clk 0:02:38.9]} 39. Ke4
{[%clk 0:03:21.2]} 39... Nc7 {[%clk 0:02:38.4]} 40. Bb6 {[%clk 0:02:55.2]} 40...
Ne6 {[%clk 0:02:37.9]} 41. Bxa5 {[%clk 0:02:44]} 41... Nc5+ {[%clk 0:02:39.4]}
42. Kf3 {[%clk 0:02:01.5]} 42... Nxb3 {[%clk 0:02:40.6]} 0-1

[Event "Un Rapid per cominciare!"]
[Site "Chess.com"]
[Date "2020.04.10"]
[Round "5"]
[White "GuGe14"]
[Black "francesco_visen"]
[Result "1-0"]
[WhiteElo "1691"]
[BlackElo "1539"]
[TimeControl "720+3"]
[EndTime "13:36:37 PDT"]
[Termination "GuGe14 ha vinto per abbandono"]

1. e4 {[%clk 0:11:55.7]} 1... e5 {[%clk 0:12:00]} 2. f4 {[%clk 0:11:57.1]} 2...
exf4 {[%clk 0:11:58.7]} 3. Nf3 {[%clk 0:11:56.4]} 3... d6 {[%clk 0:11:55.8]} 4.
d4 {[%clk 0:11:52.5]} 4... g5 {[%clk 0:11:54.1]} 5. Nc3 {[%clk 0:11:33]} 5...
Bg7 {[%clk 0:11:44.4]} 6. g3 {[%clk 0:11:19.5]} 6... Nc6 {[%clk 0:11:39.1]} 7.
Bc4 {[%clk 0:09:36.4]} 7... g4 {[%clk 0:10:29.8]} 8. Nh4 {[%clk 0:09:36.6]} 8...
f3 {[%clk 0:10:24.6]} 9. Be3 {[%clk 0:09:25.3]} 9... Nf6 {[%clk 0:10:25.2]} 10.
Qd2 {[%clk 0:09:02]} 10... O-O {[%clk 0:10:21.9]} 11. O-O-O {[%clk 0:08:48.4]}
11... a6 {[%clk 0:10:00.4]} 12. Bh6 {[%clk 0:08:24.4]} 12... Nxe4 {[%clk
0:09:26.8]} 13. Nxe4 {[%clk 0:08:19.8]} 13... d5 {[%clk 0:09:29.1]} 14. Bxg7
{[%clk 0:08:13.8]} 14... Kxg7 {[%clk 0:09:29.5]} 15. Nf2 {[%clk 0:08:08.8]}
15... dxc4 {[%clk 0:09:29]} 16. h3 {[%clk 0:08:10.1]} 16... gxh3 {[%clk
0:08:51.3]} 17. Nxh3 {[%clk 0:08:10.7]} 17... Kg8 {[%clk 0:08:05.9]} 18. Nxf3
{[%clk 0:07:47.6]} 18... Bxh3 {[%clk 0:07:55.4]} 19. Rxh3 {[%clk 0:07:44.4]}
19... f6 {[%clk 0:07:34]} 20. d5 {[%clk 0:05:08]} 20... Ne5 {[%clk 0:06:02.8]}
21. Qh6 {[%clk 0:04:29.3]} 21... Rf7 {[%clk 0:05:53.5]} 22. Nd4 {[%clk 0:02:31]}
22... Qxd5 {[%clk 0:04:41.2]} 23. Nf5 {[%clk 0:02:26.2]} 23... Nd3+ {[%clk
0:04:41.7]} 24. cxd3 {[%clk 0:01:07]} 24... Qxf5 {[%clk 0:04:43]} 25. dxc4
{[%clk 0:00:41.4]} 25... Qg5+ {[%clk 0:04:25.1]} 26. Qxg5+ {[%clk 0:00:42.7]}
26... fxg5 {[%clk 0:04:28]} 27. Rh5 {[%clk 0:00:29.2]} 27... Rg7 {[%clk
0:04:19]} 28. Rd5 {[%clk 0:00:29]} 28... g4 {[%clk 0:04:18.4]} 29. Rhg5 {[%clk
0:00:20.7]} 29... Rxg5 {[%clk 0:04:12.6]} 30. Rxg5+ {[%clk 0:00:22]} 30... Kf7
{[%clk 0:04:12.6]} 31. Rxg4 {[%clk 0:00:21.8]} 31... Rg8 {[%clk 0:04:11.9]} 32.
Rd4 {[%clk 0:00:15.4]} 32... Rxg3 {[%clk 0:04:10]} 33. Rd7+ {[%clk 0:00:17.3]}
33... Kg6 {[%clk 0:04:00.7]} 34. Rxc7 {[%clk 0:00:08.9]} 34... h5 {[%clk
0:04:01.4]} 35. Rc8 {[%clk 0:00:10.5]} 35... h4 {[%clk 0:04:00.3]} 36. Kd2
{[%clk 0:00:08]} 36... h3 {[%clk 0:04:02]} 37. Rg8+ {[%clk 0:00:09]} 37... Kf5
{[%clk 0:03:48.2]} 38. Rxg3 {[%clk 0:00:11.9]} 38... Ke4 {[%clk 0:03:47.6]} 39.
Rxh3 {[%clk 0:00:13.9]} 39... Kd4 {[%clk 0:03:47.8]} 40. b3 {[%clk 0:00:16.8]}
40... Kc5 {[%clk 0:03:48.2]} 41. Rh7 {[%clk 0:00:18.7]} 41... Kb4 {[%clk
0:03:44.8]} 42. Rxb7+ {[%clk 0:00:19.5]} 42... Ka3 {[%clk 0:03:37.6]} 43. c5
{[%clk 0:00:18]} 43... Kxa2 {[%clk 0:03:36.3]} 44. c6 {[%clk 0:00:19.5]} 44...
Kb2 {[%clk 0:03:35.9]} 45. c7 {[%clk 0:00:21.4]} 1-0

[Event "Un Rapid per cominciare!"]
[Site "Chess.com"]
[Date "2020.04.10"]
[Round "5"]
[White "Luca090267"]
[Black "Lorenzo_PR"]
[Result "0-1"]
[WhiteElo "1231"]
[BlackElo "1345"]
[TimeControl "720+3"]
[EndTime "13:38:24 PDT"]
[Termination "Lorenzo_PR ha vinto per abbandono"]

1. e4 {[%clk 0:12:02.9]} 1... d5 {[%clk 0:12:01.9]} 2. exd5 {[%clk 0:12:04.1]}
2... Nf6 {[%clk 0:12:04.3]} 3. d4 {[%clk 0:11:49.7]} 3... Bg4 {[%clk 0:12:05.6]}
4. Be2 {[%clk 0:11:45]} 4... Bxe2 {[%clk 0:12:05.5]} 5. Nxe2 {[%clk 0:11:44.7]}
5... Qxd5 {[%clk 0:12:04.9]} 6. O-O {[%clk 0:11:44.9]} 6... Nc6 {[%clk 0:11:55]}
7. Nbc3 {[%clk 0:11:28.8]} 7... Qh5 {[%clk 0:11:51.2]} 8. Bf4 {[%clk 0:10:48.2]}
8... O-O-O {[%clk 0:11:43.6]} 9. Be3 {[%clk 0:10:16.9]} 9... e6 {[%clk
0:11:00.5]} 10. Qe1 {[%clk 0:10:05.2]} 10... Bd6 {[%clk 0:10:47.5]} 11. Ng3
{[%clk 0:09:50.1]} 11... Bxg3 {[%clk 0:10:40.3]} 12. fxg3 {[%clk 0:09:51.1]}
12... Ng4 {[%clk 0:09:48.8]} 13. h3 {[%clk 0:09:36.9]} 13... Nxe3 {[%clk
0:09:48.5]} 14. Qxe3 {[%clk 0:09:36.9]} 14... Nxd4 {[%clk 0:09:31.3]} 15. Rac1
{[%clk 0:09:10.8]} 15... f6 {[%clk 0:07:45.7]} 16. Rfd1 {[%clk 0:07:47.3]} 16...
e5 {[%clk 0:07:34.7]} 17. g4 {[%clk 0:07:28.4]} 17... Qg6 {[%clk 0:07:30.3]} 18.
Qd3 {[%clk 0:06:19]} 18... Qxd3 {[%clk 0:07:12.5]} 19. Rxd3 {[%clk 0:06:18.8]}
19... Rd7 {[%clk 0:07:05.4]} 20. Kf2 {[%clk 0:06:14.7]} 20... Rhd8 {[%clk
0:07:06.6]} 21. g3 {[%clk 0:05:55.9]} 21... a6 {[%clk 0:06:45.9]} 22. Kg2 {[%clk
0:05:40.5]} 22... h6 {[%clk 0:06:34.2]} 23. Kf2 {[%clk 0:05:40.2]} 23... Nc6
{[%clk 0:06:32.6]} 24. Rxd7 {[%clk 0:05:40]} 24... Rxd7 {[%clk 0:06:34.5]} 25.
Ne4 {[%clk 0:05:20.3]} 25... b6 {[%clk 0:05:57]} 26. a3 {[%clk 0:05:20.8]} 26...
Rd4 {[%clk 0:05:42.7]} 27. Ke3 {[%clk 0:05:10.9]} 27... Kd7 {[%clk 0:05:16.1]}
28. c3 {[%clk 0:05:04.6]} 28... Rd5 {[%clk 0:05:01.4]} 29. h4 {[%clk 0:04:43.9]}
29... Na5 {[%clk 0:04:51.8]} 30. Rc2 {[%clk 0:04:04.4]} 30... Nc4+ {[%clk
0:04:24.2]} 31. Ke2 {[%clk 0:03:57.6]} 31... Nd6 {[%clk 0:04:26]} 32. Ke3 {[%clk
0:03:51.1]} 32... Nxe4 {[%clk 0:04:21]} 33. Kxe4 {[%clk 0:03:51.4]} 33... Rd6
{[%clk 0:04:06.7]} 34. Kf5 {[%clk 0:03:36.9]} 34... Ke7 {[%clk 0:03:54.5]} 35.
g5 {[%clk 0:02:42.5]} 35... hxg5 {[%clk 0:02:47.6]} 36. hxg5 {[%clk 0:02:42.1]}
36... Kf7 {[%clk 0:02:19.6]} 37. gxf6 {[%clk 0:02:39.7]} 37... gxf6 {[%clk
0:02:20.9]} 38. g4 {[%clk 0:02:19.1]} 38... Rd3 {[%clk 0:02:10.5]} 39. Rg2
{[%clk 0:02:10.6]} 39... Rf3+ {[%clk 0:02:07.7]} 40. Ke4 {[%clk 0:02:05.8]}
40... Rf4+ {[%clk 0:02:08.9]} 41. Kd5 {[%clk 0:02:02.6]} 41... Kg6 {[%clk
0:01:57.6]} 42. Kc6 {[%clk 0:01:50.9]} 42... Rc4+ {[%clk 0:01:57.7]} 43. Kb7
{[%clk 0:01:50.6]} 43... a5 {[%clk 0:01:55.8]} 44. Ka6 {[%clk 0:01:51.3]} 44...
Kg5 {[%clk 0:01:54.7]} 45. Kb7 {[%clk 0:01:52.2]} 45... Rxg4 {[%clk 0:01:48.4]}
46. Rd2 {[%clk 0:01:47]} 46... Rc4 {[%clk 0:01:46.2]} 47. Rd8 {[%clk 0:01:45.6]}
47... e4 {[%clk 0:01:47.1]} 48. Rg8+ {[%clk 0:01:45]} 48... Kf4 {[%clk 0:01:49]}
49. Ka6 {[%clk 0:01:40.1]} 49... e3 {[%clk 0:01:50.1]} 50. Re8 {[%clk
0:01:36.1]} 50... f5 {[%clk 0:01:39.6]} 51. Re7 {[%clk 0:01:32.7]} 51... Kf3
{[%clk 0:01:40.1]} 52. Kb5 {[%clk 0:01:33.1]} 52... Rc5+ {[%clk 0:01:41.2]} 53.
Ka6 {[%clk 0:01:33]} 53... e2 {[%clk 0:01:40.4]} 0-1